[Event "Mukachevo IM October 2019"]
[Site "Mukachevo"]
[Date "2019.10.03"]
[Round "4.4"]
[White "Boricsev, Oleg"]
[Black "Oros, Robert"]
[Result "1/2-1/2"]
[ECO "C42"]
[WhiteElo "2241"]
[BlackElo "2284"]
[Annotator "NA"]
[PlyCount "121"]
[EventDate "2019.10.01"]
[EventType "tourn"]
[EventCountry "UKR"]
[SourceTitle "playchess.com"]
[Source "ChessBase"]
[SourceQuality "1"]
[TimeControl "40/5400+30:900+30"]

1. e4 {[%emt 0:00:00]} e5 {[%emt 0:01:20]} 2. Nf3 {[%emt 0:00:00]} Nf6 {[%emt 0:01:09]} 3. Nxe5 {[%emt 0:00:04]} d6 {[%emt 0:00:11]} 4. Nf3 {[%emt 0:00:05]} Nxe4 {[%emt 0:00:05]} 5. Nc3 {[%emt 0:00:21]} Nxc3 {[%emt 0:00:21]} 6. dxc3 {[%emt 0:00:06]} Be7 {[%emt 0:00:19]} 7. Be3 {[%emt 0:00:45]} Nc6 {[%emt 0:00:48]} 8. Qd2 {[%emt 0:01:14]} Bg4 {[%emt 0:02:18]} 9. Be2 {[%emt 0:00:35]} Qd7 {[%emt 0:00:33]} 10. h3 {[%emt 0:00:36]} Bf5 {[%emt 0:00:24]} 11. O-O-O {[%emt 0:01:22]} a6 {[%emt 0:00:52]} 12. Nd4 {[%emt 0:05:51]} Nxd4 {[%emt 0:00:20]} 13. Bxd4 {[%emt 0:01:12]} Rg8 {[%emt 0:05:20]} 14. Rhe1 {[%emt 0:06:31]} O-O-O {[%emt 0:00:54]} 15. Bf3 {[%emt 0:01:02]} Be6 {[%emt 0:03:23]} 16. Kb1 {[%emt 0:19:55]} h6 {[%emt 0:09:08]} 17. c4 {[%emt 0:06:38]} c5 {[%emt 0:02:29]} 18. Bc3 {[%emt 0:03:16]} Bg5 {[%emt 0:02:04]} 19. Qd3 {[%emt 0:05:31]} Bf5 {[%emt 0:01:02]} 20. Be4 {[%emt 0:03:09]} Bxe4 {[%emt 0:00:12]} 21. Rxe4 {[%emt 0:00:29]} f5 {[%emt 0:07:37]} 22. Re2 {[%emt 0:01:59]} Rge8 {[%emt 0:00:53]} 23. Rde1 {[%emt 0:03:18]} Rxe2 {[%emt 0:00:41]} 24. Qxe2 {[%emt 0:00:26]} Qf7 {[%emt 0:03:10]} 25. Ba5 {[%emt 0:04:33]} Rf8 {[%emt 0:00:34]} 26. Qd3 {[%emt 0:01:02]} Qd7 {[%emt 0:03:22]} 27. a3 {[%emt 0:02:01]} Bf6 {[%emt 0:01:46]} 28. Qd5 {[%emt 0:01:00]} Bd8 {[%emt 0:06:11]} 29. Bd2 {[%emt 0:02:40]} Qc6 {[%emt 0:02:59]} 30. Re6 {[%emt 0:06:28]} Rf6 {[%emt 0:07:39]} 31. Rxf6 {[%emt 0:01:35]} Qxd5 {[%emt 0:00:39]} 32. cxd5 {[%emt 0:00:05]} Bxf6 {[%emt 0:00:07]} 33. c4 {[%emt 0:00:10]} Kd7 {[%emt 0:09:38]} 34. Kc2 {[%emt 0:00:19]} h5 {[%emt 0:01:52]} 35. b3 {[%emt 0:00:46]} Bd4 {[%emt 0:00:43]} 36. f3 {[%emt 0:00:31]} Be5 {[%emt 0:00:24]} 37. g4 {[%emt 0:01:09]} g6 {[%emt 0:04:47]} 38. Bg5 {[%emt 0:02:30]} Bg3 {[%emt 0:02:32]} 39. Kd3 {[%emt 0:01:08]} Ke8 {[%emt 0:01:40]} 40. Ke3 {[%emt 0:00:00]} Be5 {[%emt 0:00:00]} 41. gxh5 {[%emt 0:07:56]} gxh5 {[%emt 0:00:39]} 42. Kf2 {[%emt 0:00:35]} Kf7 {[%emt 0:01:49]} 43. a4 {[%emt 0:01:43]} Bf6 {[%emt 0:03:47]} 44. Bd2 {[%emt 0:07:47]} Bd4+ {[%emt 0:01:24]} 45. Kg3 {[%emt 0:00:58]} Be5+ {[%emt 0:01:24]} 46. Kf2 {[%emt 0:01:54]} Bd4+ {[%emt 0:00:10]} 47. Ke2 {[%emt 0:00:10]} Be5 {[%emt 0:00:46]} 48. b4 {[%emt 0:01:05]} cxb4 {[%emt 0:01:30]} 49. Bxb4 {[%emt 0:00:24]} Ke7 {[%emt 0:00:48]} 50. Ke3 {[%emt 0:00:38]} Kd7 {[%emt 0:01:38]} 51. Be1 {[%emt 0:02:27]} Kc7 {[%emt 0:01:10]} 52. Ba5+ {[%emt 0:02:38]} Kd7 {[%emt 0:00:13]} 53. Bb6 {[%emt 0:00:26]} Bh2 {[%emt 0:01:05]} 54. Kd3 {[%emt 0:00:58]} Bf4 {[%emt 0:00:56]} 55. Be3 {[%emt 0:01:30]} Be5 {[%emt 0:00:32]} 56. Bg5 {[%emt 0:00:58]} Bb2 {[%emt 0:00:42]} 57. Ke2 {[%emt 0:01:20]} Bd4 {[%emt 0:00:22]} 58. Be3 {[%emt 0:00:32]} Be5 {[%emt 0:00:10]} 59. f4 {[%emt 0:00:31]} Bf6 {[%emt 0:00:34]} 60. a5 {[%emt 0:01:45]} Bd8 {[%emt 0:00:46]} 61. Bd2 {[%emt 0:00:27]} 1/2-1/2

[Event "Mukachevo IM October 2019"]
[Site "Mukachevo"]
[Date "2019.10.03"]
[Round "5.1"]
[White "Tiba, Vladyslav"]
[Black "Shkuran, Danylo"]
[Result "1/2-1/2"]
[ECO "C92"]
[WhiteElo "2360"]
[BlackElo "2343"]
[Annotator "NA"]
[PlyCount "30"]
[EventDate "2019.10.01"]
[EventType "tourn"]
[EventCountry "UKR"]
[SourceTitle "playchess.com"]
[Source "ChessBase"]
[SourceQuality "1"]
[TimeControl "40/5400+30:900+30"]

1. e4 {[%emt 0:00:00]} e5 {[%emt 0:03:52]} 2. Nf3 {[%emt 0:00:33]} Nc6 {[%emt 0:00:03]} 3. Bb5 {[%emt 0:00:07]} a6 {[%emt 0:00:04]} 4. Ba4 {[%emt 0:00:03]} Nf6 {[%emt 0:00:04]} 5. O-O {[%emt 0:00:08]} d6 {[%emt 0:00:06]} 6. Re1 {[%emt 0:00:15]} Be7 {[%emt 0:00:05]} 7. c3 {[%emt 0:00:22]} b5 {[%emt 0:00:08]} 8. Bb3 {[%emt 0:00:07]} O-O {[%emt 0:00:05]} 9. h3 {[%emt 0:01:05]} Bb7 {[%emt 0:00:11]} 10. d4 {[%emt 0:00:06]} Re8 {[%emt 0:00:33]} 11. Ng5 {[%emt 0:02:00]} Rf8 {[%emt 0:00:10]} 12. Nf3 {[%emt 0:00:09]} Re8 {[%emt 0:00:07]} 13. Ng5 {[%emt 0:00:52]} Rf8 {[%emt 0:00:09]} 14. Nf3 {[%emt 0:00:06]} Re8 {[%emt 0:00:06]} 15. Ng5 {[%emt 0:00:06]} Rf8 {[%emt 0:00:12]} 1/2-1/2

[Event "Mukachevo IM October 2019"]
[Site "Mukachevo"]
[Date "2019.10.03"]
[Round "5.2"]
[White "Oros, Robert"]
[Black "Ganze, Laszlo"]
[Result "1-0"]
[ECO "B50"]
[WhiteElo "2284"]
[BlackElo "1942"]
[Annotator "NA"]
[PlyCount "121"]
[EventDate "2019.10.01"]
[EventType "tourn"]
[EventCountry "UKR"]
[SourceTitle "playchess.com"]
[Source "ChessBase"]
[SourceQuality "1"]
[TimeControl "40/5400+30:900+30"]

1. e4 {[%emt 0:00:00]} c5 {[%emt 0:00:00]} 2. Nf3 {[%emt 0:00:00]} d6 {[%emt 0:00:00]} 3. g3 {[%emt 0:01:21]} Nc6 {[%emt 0:00:55]} 4. Bg2 {[%emt 0:00:08]} Nf6 {[%emt 0:02:07]} 5. Nc3 {[%emt 0:01:13]} g6 {[%emt 0:00:33]} 6. O-O {[%emt 0:00:17]} Bg7 {[%emt 0:00:05]} 7. d3 {[%emt 0:01:04]} O-O {[%emt 0:00:25]} 8. Re1 {[%emt 0:01:34]} Bg4 {[%emt 0:02:09]} 9. h3 {[%emt 0:00:12]} Bxf3 {[%emt 0:03:05]} 10. Qxf3 {[%emt 0:00:51]} Nd4 {[%emt 0:01:34]} 11. Qd1 {[%emt 0:00:08]} Rb8 {[%emt 0:05:52]} 12. Nd5 {[%emt 0:01:25]} e6 {[%emt 0:02:58]} 13. Ne3 {[%emt 0:00:12]} Nd7 {[%emt 0:01:32]} 14. a3 {[%emt 0:09:19]} a5 {[%emt 0:04:28]} 15. a4 {[%emt 0:01:38]} Qc7 {[%emt 0:07:34]} 16. c3 {[%emt 0:02:32]} Nc6 {[%emt 0:00:12]} 17. Nc4 {[%emt 0:00:22]} Nb6 {[%emt 0:03:40]} 18. Na3 {[%emt 0:01:52]} Na7 {[%emt 0:00:29]} 19. Qc2 {[%emt 0:07:34]} Qc6 {[%emt 0:04:39]} 20. b3 {[%emt 0:00:58]} Nd7 {[%emt 0:01:42]} 21. Bd2 {[%emt 0:02:41]} b6 {[%emt 0:00:28]} 22. Nc4 {[%emt 0:00:40]} Nc8 {[%emt 0:01:39]} 23. Be3 {[%emt 0:05:21]} Ne7 {[%emt 0:03:41]} 24. Na3 {[%emt 0:02:14]} Rbd8 {[%emt 0:02:33]} 25. Qd2 {[%emt 0:01:28]} e5 {[%emt 0:02:09]} 26. Nb5 {[%emt 0:03:16]} Nf6 {[%emt 0:01:30]} 27. Bg5 {[%emt 0:01:25]} Qd7 {[%emt 0:01:05]} 28. Rad1 {[%emt 0:08:13]} Nc6 {[%emt 0:07:49]} 29. d4 {[%emt 0:01:00]} Qe7 {[%emt 0:00:48]} 30. d5 {[%emt 0:01:01]} Nb8 {[%emt 0:00:53]} 31. h4 {[%emt 0:03:58]} Rfe8 {[%emt 0:04:38]} 32. Bh3 {[%emt 0:02:21]} Qf8 {[%emt 0:02:39]} 33. Qd3 {[%emt 0:02:51]} h6 {[%emt 0:00:30]} 34. Bd2 {[%emt 0:01:06]} Kh7 {[%emt 0:01:56]} 35. Na3 {[%emt 0:04:43]} Qe7 {[%emt 0:01:53]} 36. Qf3 {[%emt 0:00:41]} Nbd7 {[%emt 0:02:02]} 37. Bf1 {[%emt 0:00:54]} Rh8 {[%emt 0:00:56]} 38. Bb5 {[%emt 0:01:31]} h5 {[%emt 0:02:29]} 39. Nc4 {[%emt 0:01:33]} Rb8 {[%emt 0:04:48]} 40. Bg5 {[%emt 0:00:00]} Nf8 {[%emt 0:00:00]} 41. Rb1 {[%emt 0:12:28]} Kg8 {[%emt 0:03:39]} 42. b4 {[%emt 0:00:59]} axb4 {[%emt 0:00:57]} 43. cxb4 {[%emt 0:00:53]} N8h7 {[%emt 0:00:46]} 44. Bd2 {[%emt 0:02:06]} Ng4 {[%emt 0:01:16]} 45. a5 {[%emt 0:01:14]} bxa5 {[%emt 0:01:20]} 46. bxc5 {[%emt 0:03:18]} dxc5 {[%emt 0:01:01]} 47. Bc6 {[%emt 0:00:47]} Rxb1 {[%emt 0:02:28]} 48. Rxb1 {[%emt 0:00:07]} Nhf6 {[%emt 0:00:53]} 49. Rb7 {[%emt 0:00:45]} Qd8 {[%emt 0:03:41]} 50. Qb3 {[%emt 0:01:32]} Kh7 {[%emt 0:00:53]} 51. f3 {[%emt 0:00:50]} Nh6 {[%emt 0:02:37]} 52. Bxh6 {[%emt 0:05:43]} Bxh6 {[%emt 0:01:21]} 53. Rxf7+ {[%emt 0:01:08]} Bg7 {[%emt 0:00:28]} 54. Qb7 {[%emt 0:01:15]} Rg8 {[%emt 0:00:25]} 55. Nxe5 {[%emt 0:01:33]} a4 {[%emt 0:00:26]} 56. Qa7 {[%emt 0:03:01]} a3 {[%emt 0:00:45]} 57. Qxa3 {[%emt 0:03:03]} Qb6 {[%emt 0:00:20]} 58. Rb7 {[%emt 0:02:43]} Qd8 {[%emt 0:00:23]} 59. Nf7 {[%emt 0:02:19]} Qc8 {[%emt 0:00:41]} 60. Qc3 {[%emt 0:00:50]} Ne8 {[%emt 0:04:09]} 61. Qc1 {[%emt 0:00:42]} 1-0

[Event "Mukachevo IM October 2019"]
[Site "Mukachevo"]
[Date "2019.10.03"]
[Round "5.3"]
[White "Kersten, Uwe"]
[Black "Boricsev, Oleg"]
[Result "1-0"]
[ECO "D02"]
[WhiteElo "2239"]
[BlackElo "2241"]
[Annotator "NA"]
[PlyCount "73"]
[EventDate "2019.10.01"]
[EventType "tourn"]
[EventCountry "UKR"]
[SourceTitle "playchess.com"]
[Source "ChessBase"]
[SourceQuality "1"]
[TimeControl "40/5400+30:900+30"]

1. d4 {[%emt 0:00:29]} d5 {[%emt 0:00:00]} 2. Nf3 {[%emt 0:01:00]} e6 {[%emt 0:00:11]} 3. Bf4 {[%emt 0:00:25]} Bd6 {[%emt 0:00:23]} 4. Bg3 {[%emt 0:00:29]} Nf6 {[%emt 0:00:39]} 5. e3 {[%emt 0:01:11]} O-O {[%emt 0:02:23]} 6. Nbd2 {[%emt 0:01:48]} c5 {[%emt 0:01:31]} 7. c3 {[%emt 0:00:18]} b6 {[%emt 0:01:30]} 8. Bd3 {[%emt 0:08:11]} Ba6 {[%emt 0:02:33]} 9. Bxa6 {[%emt 0:06:15]} Nxa6 {[%emt 0:00:21]} 10. Qe2 {[%emt 0:00:58]} Nc7 {[%emt 0:03:23]} 11. e4 {[%emt 0:05:27]} Bxg3 {[%emt 0:09:28]} 12. hxg3 {[%emt 0:00:17]} h6 {[%emt 0:05:52]} 13. e5 {[%emt 0:06:50]} Nd7 {[%emt 0:00:14]} 14. g4 {[%emt 0:10:41]} f6 {[%emt 0:01:07]} 15. Rh5 {[%emt 0:11:31]} fxe5 {[%emt 0:02:52]} 16. dxe5 {[%emt 0:00:35]} Qe8 {[%emt 0:04:11]} 17. O-O-O {[%emt 0:03:22]} c4 {[%emt 0:00:29]} 18. Nh4 {[%emt 0:12:16]} Nc5 {[%emt 0:00:33]} 19. Ndf3 {[%emt 0:00:23]} Nd3+ {[%emt 0:02:11]} 20. Rxd3 {[%emt 0:00:22]} cxd3 {[%emt 0:00:05]} 21. Qxd3 {[%emt 0:02:06]} Rf4 {[%emt 0:01:29]} 22. Ng5 {[%emt 0:08:42]} hxg5 {[%emt 0:11:17]} 23. Qh7+ {[%emt 0:00:10]} Kf8 {[%emt 0:03:32]} 24. Ng6+ {[%emt 0:05:32]} Kf7 {[%emt 0:00:07]} 25. Rxg5 {[%emt 0:04:22]} Rxf2 {[%emt 0:05:31]} 26. Nf4 {[%emt 0:01:07]} Qh8 {[%emt 0:03:57]} 27. Rf5+ {[%emt 0:04:53]} exf5 {[%emt 0:00:29]} 28. e6+ {[%emt 0:00:20]} Kf6 {[%emt 0:29:23]} 29. Qxf5+ {[%emt 0:00:20]} Ke7 {[%emt 0:00:04]} 30. Qf7+ {[%emt 0:01:24]} Kd6 {[%emt 0:00:07]} 31. Qd7+ {[%emt 0:00:13]} Ke5 {[%emt 0:00:08]} 32. Ng6+ {[%emt 0:01:07]} Ke4 {[%emt 0:04:52]} 33. Qa4+ {[%emt 0:01:35]} Ke3 {[%emt 0:01:22]} 34. Qd4+ {[%emt 0:00:41]} Ke2 {[%emt 0:00:05]} 35. Qd1+ {[%emt 0:01:02]} Ke3 {[%emt 0:00:05]} 36. Qe1+ {[%emt 0:00:24]} Re2 {[%emt 0:03:20]} 37. Qg3+ 1-0

[Event "Mukachevo IM October 2019"]
[Site "Mukachevo"]
[Date "2019.10.03"]
[Round "5.4"]
[White "Vachylia, Andrii"]
[Black "Sernecki, Franciszek"]
[Result "1-0"]
[ECO "D52"]
[WhiteElo "2201"]
[BlackElo "2276"]
[Annotator "NA"]
[PlyCount "99"]
[EventDate "2019.10.01"]
[EventType "tourn"]
[EventCountry "UKR"]
[SourceTitle "playchess.com"]
[Source "ChessBase"]
[SourceQuality "1"]
[TimeControl "40/5400+30:900+30"]

1. d4 {[%emt 0:00:00]} Nf6 {[%emt 0:00:12]} 2. c4 {[%emt 0:00:00]} e6 {[%emt 0:00:08]} 3. Nf3 {[%emt 0:00:00]} d5 {[%emt 0:00:04]} 4. Nc3 {[%emt 0:00:00]} c6 {[%emt 0:00:12]} 5. Bg5 {[%emt 0:00:26]} Nbd7 {[%emt 0:00:33]} 6. e3 {[%emt 0:00:20]} Qa5 {[%emt 0:00:41]} 7. Qc2 {[%emt 0:02:47]} Ne4 {[%emt 0:08:38]} 8. cxd5 {[%emt 0:00:31]} exd5 {[%emt 0:01:09]} 9. Bd3 {[%emt 0:00:19]} Nxg5 {[%emt 0:10:02]} 10. Nxg5 {[%emt 0:00:07]} g6 {[%emt 0:00:17]} 11. a3 {[%emt 0:18:41]} Bd6 {[%emt 0:15:17]} 12. h4 {[%emt 0:06:00]} Qd8 {[%emt 0:06:57]} 13. e4 {[%emt 0:01:45]} h6 {[%emt 0:12:26]} 14. Nf3 {[%emt 0:00:29]} dxe4 {[%emt 0:00:57]} 15. Nxe4 {[%emt 0:00:09]} Be7 {[%emt 0:01:01]} 16. O-O-O {[%emt 0:06:53]} Nf6 {[%emt 0:11:05]} 17. Nxf6+ {[%emt 0:06:26]} Bxf6 {[%emt 0:00:02]} 18. Qc5 {[%emt 0:00:17]} Be6 {[%emt 0:09:49]} 19. Rhe1 {[%emt 0:00:09]} Qe7 {[%emt 0:01:24]} 20. Bc4 {[%emt 0:01:37]} Qxc5 {[%emt 0:07:56]} 21. dxc5 {[%emt 0:00:07]} Be7 {[%emt 0:01:48]} 22. Bxe6 {[%emt 0:01:11]} fxe6 {[%emt 0:00:21]} 23. Rxe6 {[%emt 0:00:44]} Kf7 {[%emt 0:00:34]} 24. Re2 {[%emt 0:00:18]} Rad8 {[%emt 0:02:46]} 25. Ne5+ {[%emt 0:02:05]} Kg7 {[%emt 0:00:39]} 26. Rxd8 {[%emt 0:01:12]} Bxd8 {[%emt 0:00:19]} 27. Rd2 {[%emt 0:02:35]} Bxh4 {[%emt 0:01:53]} 28. g3 {[%emt 0:04:04]} Bd8 {[%emt 0:01:08]} 29. f4 {[%emt 0:01:53]} h5 {[%emt 0:03:07]} 30. Rd7+ {[%emt 0:00:08]} Kf6 {[%emt 0:00:13]} 31. Rd6+ {[%emt 0:02:16]} Kg7 {[%emt 0:01:04]} 32. Rxg6+ {[%emt 0:00:17]} Kh7 {[%emt 0:00:47]} 33. Rd6 {[%emt 0:00:16]} Re8 {[%emt 0:00:31]} 34. Rd7+ {[%emt 0:00:33]} Kg8 {[%emt 0:00:08]} 35. Rxb7 {[%emt 0:00:42]} Bf6 {[%emt 0:00:32]} 36. Nd7 {[%emt 0:05:22]} Bg7 {[%emt 0:00:55]} 37. Kd2 {[%emt 0:01:56]} Rd8 {[%emt 0:00:42]} 38. Kc2 {[%emt 0:00:45]} Re8 {[%emt 0:00:17]} 39. Kd3 {[%emt 0:02:04]} Re1 {[%emt 0:00:24]} 40. f5 {[%emt 0:00:00]} Rg1 {[%emt 0:00:00]} 41. f6 {[%emt 0:02:18]} Rxg3+ {[%emt 0:01:45]} 42. Ke4 {[%emt 0:00:06]} Bh6 {[%emt 0:00:08]} 43. Kf5 {[%emt 0:01:40]} h4 {[%emt 0:00:42]} 44. Rb8+ {[%emt 0:06:06]} Kh7 {[%emt 0:00:12]} 45. Rb4 {[%emt 0:00:12]} Rg5+ {[%emt 0:03:43]} 46. Ke6 {[%emt 0:00:07]} Rh5 {[%emt 0:00:05]} 47. f7 {[%emt 0:01:59]} h3 {[%emt 0:00:10]} 48. Rg4 {[%emt 0:01:08]} h2 {[%emt 0:00:49]} 49. Nf6+ {[%emt 0:00:07]} Kh8 {[%emt 0:00:01]} 50. Rg8# {[%emt 0:00:09]} 1-0

[Event "Mukachevo IM October 2019"]
[Site "Mukachevo"]
[Date "2019.10.04"]
[Round "6.4"]
[White "Ganze, Laszlo"]
[Black "Kersten, Uwe"]
[Result "0-1"]
[ECO "A46"]
[WhiteElo "1942"]
[BlackElo "2239"]
[Annotator "NA"]
[PlyCount "70"]
[EventDate "2019.10.01"]
[EventType "tourn"]
[EventCountry "UKR"]
[SourceTitle "playchess.com"]
[Source "ChessBase"]
[SourceQuality "1"]
[TimeControl "40/5400+30:900+30"]

1. d4 {[%emt 0:00:00]} Nf6 {[%emt 0:00:00]} 2. Nf3 {[%emt 0:00:01]} e6 {[%emt 0:00:20]} 3. c4 {[%emt 0:00:22]} c5 {[%emt 0:00:40]} 4. Nc3 {[%emt 0:03:21]} cxd4 {[%emt 0:00:42]} 5. Nxd4 {[%emt 0:00:12]} a6 {[%emt 0:02:13]} 6. g3 {[%emt 0:03:23]} Qc7 {[%emt 0:00:47]} 7. Qd3 {[%emt 0:03:46]} b6 {[%emt 0:00:27]} 8. Bg2 {[%emt 0:00:32]} Bb7 {[%emt 0:00:08]} 9. e4 {[%emt 0:01:40]} d6 {[%emt 0:01:40]} 10. O-O {[%emt 0:04:39]} Be7 {[%emt 0:01:17]} 11. b3 {[%emt 0:03:49]} O-O {[%emt 0:00:43]} 12. Bb2 {[%emt 0:00:32]} Nbd7 {[%emt 0:00:20]} 13. Qe2 {[%emt 0:02:45]} Rfe8 {[%emt 0:04:09]} 14. Rad1 {[%emt 0:02:29]} Bf8 {[%emt 0:01:43]} 15. Qc2 {[%emt 0:03:40]} Rac8 {[%emt 0:01:15]} 16. Qb1 {[%emt 0:01:38]} Qb8 {[%emt 0:01:06]} 17. f3 {[%emt 0:00:48]} Ba8 {[%emt 0:13:25]} 18. Rfe1 {[%emt 0:02:58]} g6 {[%emt 0:04:56]} 19. Bh3 {[%emt 0:02:59]} Bg7 {[%emt 0:01:48]} 20. Bf1 {[%emt 0:06:24]} h5 {[%emt 0:03:22]} 21. Nde2 {[%emt 0:02:35]} Ne5 {[%emt 0:11:37]} 22. Bg2 {[%emt 0:00:36]} b5 {[%emt 0:00:57]} 23. cxb5 {[%emt 0:01:44]} axb5 {[%emt 0:01:30]} 24. Nf4 {[%emt 0:04:04]} Qb6+ {[%emt 0:12:12]} 25. Kh1 {[%emt 0:00:44]} Nfg4 {[%emt 0:00:56]} 26. fxg4 {[%emt 0:08:14]} Nxg4 {[%emt 0:00:05]} 27. Nh3 {[%emt 0:07:27]} Bxc3 {[%emt 0:01:04]} 28. Bxc3 {[%emt 0:00:49]} Rxc3 {[%emt 0:00:06]} 29. Rd3 {[%emt 0:04:48]} Rec8 {[%emt 0:02:46]} 30. Bf3 {[%emt 0:05:28]} Ne5 {[%emt 0:02:58]} 31. Rxc3 {[%emt 0:02:30]} Rxc3 {[%emt 0:00:03]} 32. Bg2 {[%emt 0:00:29]} Ng4 {[%emt 0:00:51]} 33. Qb2 {[%emt 0:02:50]} Qc5 {[%emt 0:01:58]} 34. b4 {[%emt 0:01:36]} Qc4 {[%emt 0:01:45]} 35. Bf1 {[%emt 0:09:28]} Bxe4+ 0-1

[Event "Mukachevo IM October 2019"]
[Site "Mukachevo"]
[Date "2019.10.04"]
[Round "7.1"]
[White "Oros, Robert"]
[Black "Shkuran, Danylo"]
[Result "1/2-1/2"]
[ECO "D10"]
[WhiteElo "2284"]
[BlackElo "2343"]
[Annotator "NA"]
[PlyCount "62"]
[EventDate "2019.10.01"]
[EventType "tourn"]
[EventCountry "UKR"]
[SourceTitle "playchess.com"]
[Source "ChessBase"]
[SourceQuality "1"]
[TimeControl "40/5400+30:900+30"]

1. d4 {[%emt 0:00:00]} d5 {[%emt 0:00:00]} 2. c4 {[%emt 0:00:08]} c6 {[%emt 0:00:00]} 3. Nf3 {[%emt 0:00:09]} Nf6 {[%emt 0:00:00]} 4. cxd5 {[%emt 0:00:06]} cxd5 {[%emt 0:00:00]} 5. Nc3 {[%emt 0:00:06]} Nc6 {[%emt 0:00:07]} 6. Bf4 {[%emt 0:00:18]} a6 {[%emt 0:00:49]} 7. e3 {[%emt 0:00:08]} Bg4 {[%emt 0:00:21]} 8. Be2 {[%emt 0:00:29]} e6 {[%emt 0:00:47]} 9. O-O {[%emt 0:00:13]} Bd6 {[%emt 0:00:17]} 10. Ne5 {[%emt 0:01:53]} Bxe2 {[%emt 0:05:25]} 11. Qxe2 {[%emt 0:00:09]} Rc8 {[%emt 0:00:45]} 12. Rfc1 {[%emt 0:00:35]} O-O {[%emt 0:00:55]} 13. Nxc6 {[%emt 0:02:41]} Rxc6 {[%emt 0:00:41]} 14. Bg5 {[%emt 0:02:33]} h6 {[%emt 0:00:34]} 15. Bh4 {[%emt 0:01:14]} Be7 {[%emt 0:00:15]} 16. Qd1 {[%emt 0:02:37]} Qd7 {[%emt 0:05:59]} 17. Bxf6 {[%emt 0:00:56]} Bxf6 {[%emt 0:01:29]} 18. Ne2 {[%emt 0:00:22]} Rfc8 {[%emt 0:00:20]} 19. Rxc6 {[%emt 0:00:12]} Rxc6 {[%emt 0:02:08]} 20. Rc1 {[%emt 0:02:13]} Be7 {[%emt 0:02:16]} 21. g3 {[%emt 0:01:28]} Bd6 {[%emt 0:00:35]} 22. Rxc6 {[%emt 0:00:28]} Qxc6 {[%emt 0:00:04]} 23. Qc1 {[%emt 0:00:10]} Qxc1+ {[%emt 0:00:34]} 24. Nxc1 {[%emt 0:00:05]} Kf8 {[%emt 0:00:21]} 25. Kf1 {[%emt 0:00:29]} Ke7 {[%emt 0:03:56]} 26. Ke2 {[%emt 0:01:46]} Kd7 {[%emt 0:00:15]} 27. Kd3 {[%emt 0:00:21]} Kc6 {[%emt 0:00:12]} 28. Ne2 {[%emt 0:00:07]} b6 {[%emt 0:00:18]} 29. Nc3 {[%emt 0:00:06]} Bb4 {[%emt 0:00:05]} 30. a3 {[%emt 0:00:09]} Bxc3 {[%emt 0:00:05]} 31. Kxc3 {[%emt 0:00:04]} Kb5 1/2-1/2

[Event "Mukachevo IM October 2019"]
[Site "Mukachevo"]
[Date "2019.10.04"]
[Round "7.2"]
[White "Kersten, Uwe"]
[Black "Tiba, Vladyslav"]
[Result "1-0"]
[ECO "A45"]
[WhiteElo "2239"]
[BlackElo "2360"]
[Annotator "NA"]
[PlyCount "99"]
[EventDate "2019.10.01"]
[EventType "tourn"]
[EventCountry "UKR"]
[SourceTitle "playchess.com"]
[Source "ChessBase"]
[SourceQuality "1"]
[TimeControl "40/5400+30:900+30"]

1. d4 {[%emt 0:00:00]} Nf6 {[%emt 0:00:00]} 2. Bf4 {[%emt 0:00:00]} g6 {[%emt 0:00:00]} 3. Nc3 {[%emt 0:00:19]} d5 {[%emt 0:02:04]} 4. e3 {[%emt 0:00:08]} Bg7 {[%emt 0:00:07]} 5. h4 {[%emt 0:00:16]} h5 {[%emt 0:00:17]} 6. Nf3 {[%emt 0:01:32]} O-O {[%emt 0:00:21]} 7. Be2 {[%emt 0:07:24]} c5 {[%emt 0:10:47]} 8. Ne5 {[%emt 0:03:30]} cxd4 {[%emt 0:01:09]} 9. exd4 {[%emt 0:00:15]} Nc6 {[%emt 0:00:45]} 10. Qd2 {[%emt 0:05:07]} Bf5 {[%emt 0:02:20]} 11. Nxc6 {[%emt 0:09:52]} bxc6 {[%emt 0:00:06]} 12. f3 {[%emt 0:00:56]} c5 {[%emt 0:06:02]} 13. Be5 {[%emt 0:04:41]} cxd4 {[%emt 0:02:48]} 14. Bxd4 {[%emt 0:02:01]} Qb8 {[%emt 0:02:26]} 15. f4 {[%emt 0:18:40]} Rd8 {[%emt 0:04:17]} 16. O-O-O {[%emt 0:01:51]} a5 {[%emt 0:05:26]} 17. a4 {[%emt 0:03:06]} Bg4 {[%emt 0:08:45]} 18. Bxg4 {[%emt 0:01:55]} Nxg4 {[%emt 0:00:27]} 19. Bxg7 {[%emt 0:04:00]} Kxg7 {[%emt 0:00:22]} 20. Qd4+ {[%emt 0:00:28]} Kh7 {[%emt 0:00:58]} 21. Rhe1 {[%emt 0:04:50]} e6 {[%emt 0:00:38]} 22. Nb5 {[%emt 0:01:48]} Qb7 {[%emt 0:00:47]} 23. Rd3 {[%emt 0:00:54]} Rac8 {[%emt 0:01:00]} 24. b3 {[%emt 0:01:04]} Qe7 {[%emt 0:00:22]} 25. g3 {[%emt 0:01:07]} Nf6 {[%emt 0:00:15]} 26. Rc3 {[%emt 0:02:07]} Ne4 {[%emt 0:01:35]} 27. Rxc8 {[%emt 0:00:50]} Rxc8 {[%emt 0:00:07]} 28. Re3 {[%emt 0:00:21]} Qe8 {[%emt 0:04:21]} 29. Kb2 {[%emt 0:01:29]} Qc6 {[%emt 0:01:21]} 30. c3 {[%emt 0:03:48]} Rb8 {[%emt 0:00:50]} 31. Qe5 {[%emt 0:02:15]} Rb7 {[%emt 0:00:45]} 32. Qd4 {[%emt 0:00:22]} Re7 {[%emt 0:02:36]} 33. Na7 {[%emt 0:03:13]} Qb7 {[%emt 0:00:45]} 34. Nb5 {[%emt 0:00:06]} f6 {[%emt 0:00:23]} 35. Rd3 {[%emt 0:02:31]} Kg7 {[%emt 0:02:43]} 36. Qg1 {[%emt 0:01:35]} e5 {[%emt 0:01:07]} 37. Qe3 {[%emt 0:03:25]} Qd7 {[%emt 0:04:33]} 38. fxe5 {[%emt 0:02:24]} Rxe5 {[%emt 0:00:54]} 39. Qa7 {[%emt 0:01:44]} Qxa7 {[%emt 0:00:57]} 40. Nxa7 {[%emt 0:00:00]} g5 {[%emt 0:00:00]} 41. Nc6 {[%emt 0:00:46]} Rf5 {[%emt 0:00:48]} 42. b4 {[%emt 0:04:14]} Rf2+ {[%emt 0:01:12]} 43. Ka3 {[%emt 0:00:42]} g4 {[%emt 0:00:33]} 44. Nd4 {[%emt 0:00:59]} Nd2 {[%emt 0:02:40]} 45. bxa5 {[%emt 0:00:57]} Nc4+ {[%emt 0:00:13]} 46. Kb4 {[%emt 0:00:06]} Rb2+ {[%emt 0:00:13]} 47. Kc5 {[%emt 0:00:49]} Ra2 {[%emt 0:01:15]} 48. Kxd5 {[%emt 0:02:02]} Rxa4 {[%emt 0:00:13]} 49. Ne6+ {[%emt 0:01:08]} Kf7 {[%emt 0:00:13]} 50. Nc5 {[%emt 0:00:17]} 1-0